bitfinex/quotes_SOLUSD_20250506
["timestamp","ask_amount","ask_price","bid_price","bid_amount"]
[1746529297183,6.95894224,143.7,143.69,23.93737453]
[1746529298090,6.95894224,143.7,143.67,123.93265222]
[1746529298296,6.95894224,143.7,143.68,23.93737453]
[1746529298669,6.95894224,143.7,143.67,123.93265222]
[1746529299100,24.35629784,143.7,143.67,123.93265222]
[1746529299282,24.35629784,143.7,143.67,99.99527769]
[1746529299689,6.95894224,143.7,143.69,23.93737453]
[1746529301076,6.95894224,143.7,143.67,123.93265222]
[1746529301897,24.35629784,143.7,143.67,123.93265222]
[1746529302201,23.93737453,143.69,143.67,99.99527769]
[1746529302905,24.35629784,143.7,143.67,99.99527769]
[1746529303106,48.29367237,143.7,143.67,99.99527769]
[1746529303512,23.93737453,143.69,143.67,99.99527769]
[1746529304384,48.29367237,143.7,143.67,99.99527769]
[1746529305498,24.35121407,143.73,143.67,123.93265222]
[1746529305673,23.93737453,143.71,143.67,123.93265222]
[1746529305869,23.93737453,143.72,143.68,23.93737453]
[1746529306069,48.2885886,143.73,143.69,23.93737453]
[1746529307310,23.93737453,143.72,143.68,23.93737453]
[1746529307478,6.958458,143.71,143.68,23.93737453]
[1746529308906,6.958458,143.71,143.67,99.99527769]
[1746529308907,48.29197754,143.71,143.67,123.93265222]
[1746529309409,48.29197754,143.71,143.67,99.99527769]
[1746529309704,48.29197754,143.71,143.67,123.93265222]
[1746529310092,48.29197754,143.71,143.68,23.93737453]
[1746529310599,6.958458,143.71,143.68,23.93737453]
[1746529310786,6.958458,143.71,143.7,23.93737453]
[1746529310984,17.39388037,143.73,143.71,93.03681969]
[1746529311393,23.93737453,143.74,143.71,93.03681969]
[1746529312110,6.95748973,143.73,143.71,93.03681969]
[1746529313099,30.89486426,143.73,143.71,93.03681969]
[1746529313297,6.95748973,143.73,143.71,93.03681969]
[1746529313487,23.93737453,143.72,143.71,93.03681969]
[1746529313693,30.89534836,143.72,143.71,93.03681969]
[1746529318610,48.29028295,143.72,143.68,93.03681969]
[1746529318793,23.93737453,143.69,143.68,93.03681969]
[1746529320525,23.93737453,143.69,143.64,116.97419422]
[1746529320816,48.29706272,143.68,143.64,116.97419422]
[1746529321426,24.35968819,143.68,143.66,23.93737453]
[1746529321915,24.35968819,143.68,143.65,23.93737453]
[1746529323201,6.95991091,143.68,143.65,23.93737453]
[1746529323602,6.95991091,143.68,143.65,116.97419422]
[1746529323805,6.95991091,143.68,143.65,107.9978442]
[1746529324321,6.95991091,143.68,143.65,93.03681969]
[1746529324515,21.92093542,143.68,143.65,93.03681969]
[1746529324717,21.92093542,143.68,143.65,107.9978442]
[1746529324895,24.35968819,143.68,143.65,107.9978442]
[1746529325104,24.35968819,143.68,143.66,14.96102451]
[1746529325301,14.96102451,143.7,143.66,107.9978442]
[1746529325923,14.96102451,143.69,143.66,93.03681969]
[1746529327516,6.95991091,143.68,143.66,93.03681969]
[1746529328402,6.95991091,143.68,143.66,107.9978442]
[1746529329420,24.35844619,143.69,143.66,107.9978442]
[1746529329832,24.35844619,143.69,143.67,14.96102451]
[1746529330129,24.35844619,143.69,143.67,107.9978442]
[1746529330707,6.95942654,143.69,143.67,107.9978442]
[1746529330912,6.95942654,143.69,143.68,14.96102451]
[1746529331100,6.95942654,143.69,143.67,107.9978442]
[1746529331422,6.95894224,143.7,143.67,107.9978442]
[1746529332000,39.31732235,143.7,143.67,93.03681969]
[1746529333624,24.35629784,143.7,143.67,107.9978442]
[1746529334627,39.31732235,143.7,143.67,93.03681969]
[1746529336131,24.35629784,143.7,143.67,93.03681969]
[1746529336320,39.31732235,143.7,143.67,93.03681969]
[1746529338624,14.96102451,143.69,143.67,93.03681969]
[1746529339226,6.95991091,143.68,143.67,93.03681969]
[1746529341018,6.95942654,143.69,143.67,93.03681969]
[1746529341220,21.92045105,143.69,143.67,93.03681969]
[1746529342831,6.95942654,143.69,143.67,93.03681969]
[1746529344737,21.92045105,143.69,143.67,93.03681969]
[1746529347013,14.96102451,143.68,143.67,93.03681969]
[1746529348446,21.92093542,143.68,143.67,93.03681969]
[1746529348834,100.12026726,143.68,143.63,93.03681969]
[1746529349137,14.96102451,143.64,143.63,93.03681969]
[1746529350136,14.96102451,143.64,143.59,94.63891969]
[1746529350320,26.0,143.65,143.59,94.63891969]
[1746529350321,14.96102451,143.61,143.59,94.63891969]
[1746529350524,21.92481281,143.6,143.59,93.03681969]
[1746529355460,6.9637883,143.6,143.59,93.03681969]
[1746529356745,21.92481281,143.6,143.59,93.03681969]
[1746529356945,6.9637883,143.6,143.59,93.03681969]
[1746529357132,21.92481281,143.6,143.59,93.03681969]
[1746529360845,6.9637883,143.6,143.59,93.03681969]
[1746529362868,21.92481281,143.6,143.59,93.03681969]
[1746529364228,6.9637883,143.6,143.59,93.03681969]
[1746529364429,21.92481281,143.6,143.59,93.03681969]
[1746529378968,6.96330339,143.61,143.59,93.03681969]
[1746529379461,21.9243279,143.61,143.59,93.03681969]
[1746529379672,14.96102451,143.6,143.59,93.03681969]
[1746529381042,21.92481281,143.6,143.59,93.03681969]
[1746529383169,6.9637883,143.6,143.59,93.03681969]
[1746529384148,6.96330339,143.61,143.59,93.03681969]
[1746529384869,6.96330339,143.61,143.59,107.9978442]
[1746529385544,6.96330339,143.61,143.59,93.03681969]
[1746529386973,24.37029297,143.62,143.59,93.03681969]
[1746529387174,24.37029297,143.62,143.59,107.9978442]
[1746529388753,6.96281854,143.62,143.6,16.53002451]
[1746529388961,6.96281854,143.62,143.61,14.96102451]
[1746529389868,24.36597874,143.65,143.61,14.96102451]
[1746529390078,39.32700325,143.65,143.61,107.9978442]
[1746529390366,14.96102451,143.64,143.61,93.03681969]
[1746529391368,39.32700325,143.65,143.61,107.9978442]
[1746529392273,24.36597874,143.65,143.61,107.9978442]
[1746529392480,39.32700325,143.65,143.61,107.9978442]
[1746529393173,14.96102451,143.64,143.61,107.9978442]
[1746529393502,6.96233377,143.63,143.61,93.03681969]
[1746529394578,6.96233377,143.63,143.61,107.9978442]
[1746529395392,6.96233377,143.63,143.61,93.03681969]
[1746529396975,6.96233377,143.63,143.61,107.9978442]
[1746529397296,6.96233377,143.63,143.62,14.96102451]
[1746529398094,24.36597874,143.65,143.62,14.96102451]
[1746529398389,24.36597874,143.65,143.61,93.03681969]
[1746529398390,39.32700325,143.65,143.61,107.9978442]
[1746529401597,6.96136442,143.65,143.64,14.96102451]
[1746529401791,17.40128457,143.67,143.65,86.07545527]
[1746529401992,17.40128457,143.67,143.65,101.03647978]
[1746529402576,10.89585764,143.71,143.66,14.96102451]
[1746529402802,25.85688215,143.71,143.67,14.96102451]
[1746529402980,14.96102451,143.71,143.67,14.96102451]
[1746529403301,6.95894224,143.7,143.67,101.03647978]
[1746529403682,6.95894224,143.7,143.68,14.96102451]
[1746529403887,6.95894224,143.7,143.67,86.07545527]
[1746529403888,6.95894224,143.7,143.69,14.96102451]
[1746529404095,6.95894224,143.7,143.69,101.03647978]
[1746529405578,6.95797383,143.72,143.69,101.03647978]
[1746529406573,6.95797383,143.72,143.7,14.96102451]
[1746529407808,24.35138098,143.73,143.7,14.96102451]
[1746529407981,24.35138098,143.73,143.7,101.03647978]
[1746529408180,6.95748973,143.73,143.71,14.96102451]
[1746529409602,24.34951996,143.74,143.71,14.96102451]
[1746529410592,39.31054447,143.74,143.71,14.96102451]
[1746529412682,14.96102451,143.75,143.71,14.96102451]
[1746529412889,14.96102451,143.75,143.71,101.03647978]
[1746529415286,6.9570057,143.74,143.71,101.03647978]
[1746529419119,24.34951996,143.74,143.71,101.03647978]
[1746529421393,6.9570057,143.74,143.73,14.96102451]
[1746529422280,6.95652173,143.75,143.72,14.96102451]
[1746529422482,6.95652173,143.75,143.72,86.07545527]
[1746529422684,6.95652173,143.75,143.74,14.96102451]
[1746529422885,6.95652173,143.75,143.74,101.03647978]
[1746529423291,6.955554,143.77,143.74,101.03647978]
[1746529423810,6.955554,143.77,143.75,14.96102451]
[1746529424107,6.955554,143.77,143.74,101.03647978]
[1746529424696,24.34443902,143.77,143.74,101.03647978]
[1746529424894,24.34443902,143.77,143.74,86.07545527]
[1746529424895,39.30546353,143.77,143.74,86.07545527]
[1746529425304,24.34443902,143.77,143.74,101.03647978]
[1746529426105,6.955554,143.77,143.75,14.96102451]
[1746529426516,6.95507024,143.78,143.76,14.96102451]
[1746529426812,6.95507024,143.78,143.76,101.03647978]
[1746529427596,17.38675397,143.79,143.76,101.03647978]
[1746529427597,24.34134051,143.79,143.76,101.03647978]
[1746529429119,6.95458654,143.79,143.77,14.96102451]
[1746529430018,6.95410292,143.8,143.77,14.96102451]
[1746529431919,6.95410292,143.8,143.77,101.03647978]
[1746529432414,21.91512743,143.8,143.77,86.07545527]
[1746529433001,6.95410292,143.8,143.77,101.03647978]
[1746529433315,21.91512743,143.8,143.77,86.07545527]
[1746529434110,14.96102451,143.79,143.77,86.07545527]
[1746529435100,39.30038473,143.8,143.77,86.07545527]
[1746529435307,24.33936022,143.8,143.77,86.07545527]
[1746529435596,39.30038473,143.8,143.77,86.07545527]
[1746529435924,14.96102451,143.79,143.77,86.07545527]
[1746529436115,24.33936022,143.8,143.77,86.07545527]
[1746529436722,14.96102451,143.79,143.77,86.07545527]
[1746529437323,32.34628181,143.8,143.77,86.07545527]
[1746529438196,6.95361935,143.81,143.77,86.07545527]
[1746529438416,6.95361935,143.81,143.78,14.96102451]
[1746529439930,24.33546151,143.83,143.78,14.96102451]
[1746529440130,24.33546151,143.83,143.8,14.96102451]
[1746529440319,6.95265243,143.83,143.8,101.03647978]
[1746529440833,6.95265243,143.83,143.8,86.07545527]
[1746529441133,6.95265243,143.83,143.8,102.64267978]
[1746529441711,6.95265243,143.83,143.81,14.96102451]
[1746529441911,24.33350995,143.84,143.81,14.96102451]
[1746529442212,39.29453446,143.84,143.8,102.64267978]
[1746529442929,14.96102451,143.82,143.8,87.68165527]
[1746529443131,14.96102451,143.82,143.8,86.07545527]
[1746529443330,24.33350995,143.84,143.8,86.07545527]
[1746529443631,14.96102451,143.83,143.8,86.07545527]
[1746529444035,6.95313586,143.82,143.8,86.07545527]
[1746529445737,14.96102451,143.81,143.8,86.07545527]
[1746529446035,21.91464386,143.81,143.8,86.07545527]
[1746529447230,6.95361935,143.81,143.8,86.07545527]
[1746529450924,6.95313586,143.82,143.8,86.07545527]
[1746529453415,17.38134088,143.84,143.8,86.07545527]
[1746529453616,14.96102451,143.83,143.8,86.07545527]
[1746529453818,32.34236539,143.84,143.8,101.03647978]
[1746529454348,17.38134088,143.84,143.8,101.03647978]
[1746529455140,39.29453446,143.84,143.8,101.03647978]
[1746529455329,14.96102451,143.83,143.8,86.07545527]
[1746529456520,39.29453446,143.84,143.8,86.07545527]
[1746529456944,6.95313586,143.82,143.8,86.07545527]
[1746529458836,14.96102451,143.81,143.8,86.07545527]
[1746529459219,21.91464386,143.81,143.8,86.07545527]
[1746529461847,6.95361935,143.81,143.8,86.07545527]
[1746529462141,21.91464386,143.81,143.8,86.07545527]
[1746529463646,6.95361935,143.81,143.8,86.07545527]
[1746529465750,17.38134088,143.84,143.8,86.07545527]
[1746529465954,32.34236539,143.84,143.8,86.07545527]
[1746529466952,17.38134088,143.84,143.8,86.07545527]
[1746529467247,32.34236539,143.84,143.8,86.07545527]
[1746529467645,17.38134088,143.84,143.8,101.03647978]
[1746529467846,17.38134088,143.84,143.81,14.96102451]
[1746529468235,21.91271029,143.85,143.82,16.58182451]
[1746529468236,6.95168578,143.85,143.82,16.58182451]
[1746529469248,6.95168578,143.85,143.83,14.96102451]
[1746529469448,24.32944033,143.86,143.83,101.03647978]
[1746529470649,24.32944033,143.86,143.83,86.07545527]
[1746529470839,6.95120255,143.86,143.83,101.03647978]
[1746529472954,21.91222706,143.86,143.83,86.07545527]
[1746529473247,14.96102451,143.85,143.83,86.07545527]
[1746529473560,39.29023345,143.86,143.83,86.07545527]
[1746529476350,14.96102451,143.85,143.83,86.07545527]
[1746529476730,14.96102451,143.84,143.83,86.07545527]
[1746529477247,21.91319358,143.84,143.83,86.07545527]
[1746529481834,6.95216907,143.84,143.83,86.07545527]
[1746529482154,21.91319358,143.84,143.83,86.07545527]
[1746529482569,6.95216907,143.84,143.83,86.07545527]
[1746529482772,21.91319358,143.84,143.83,86.07545527]
[1746529485677,6.95216907,143.84,143.83,86.07545527]
[1746529485960,14.96102451,143.85,143.83,86.07545527]
[1746529486461,14.96102451,143.84,143.83,86.07545527]
[1746529486661,14.96102451,143.85,143.83,86.07545527]
[1746529487179,24.32413648,143.89,143.83,86.07545527]
[1746529487344,14.96102451,143.87,143.83,101.03647978]
[1746529487680,14.96102451,143.87,143.83,86.07545527]
[1746529487881,6.95168578,143.85,143.83,86.07545527]
[1746529489061,6.95168578,143.85,143.83,101.03647978]
[1746529489965,17.37788262,143.87,143.83,101.03647978]
[1746529490172,32.33890713,143.87,143.83,101.03647978]
[1746529490973,14.96102451,143.86,143.83,86.07545527]
[1746529491963,6.95168578,143.85,143.83,101.03647978]
[1746529492779,6.95168578,143.85,143.83,86.07545527]
[1746529494174,6.95120255,143.86,143.83,86.07545527]
[1746529494477,39.29023345,143.86,143.83,86.07545527]
[1746529500295,24.32920894,143.86,143.83,86.07545527]
[1746529501561,6.95120255,143.86,143.83,101.03647978]
[1746529501773,6.95120255,143.86,143.83,95.62578963]
[1746529502365,6.95120255,143.86,143.83,86.07545527]
[1746529503071,6.95120255,143.86,143.83,95.62578963]
[1746529503993,6.95120255,143.86,143.83,86.07545527]
[1746529504168,6.95120255,143.86,143.83,95.62578963]
[1746529509703,9.55033436,143.86,143.83,86.07545527]
[1746529511104,9.55033436,143.85,143.83,86.07545527]
[1746529512102,6.95216907,143.84,143.83,86.07545527]
[1746529519504,16.50250343,143.84,143.83,86.07545527]
[1746529519683,33.88292612,143.84,143.79,86.07545527]
[1746529519996,9.55033436,143.82,143.79,86.07545527]
[1746529520392,9.55033436,143.81,143.79,86.07545527]
[1746529521899,6.95410292,143.8,143.79,86.07545527]
[1746529525806,16.50443728,143.8,143.79,86.07545527]
[1746529526023,33.88969458,143.8,143.75,87.72675527]
[1746529526316,9.55033436,143.78,143.75,87.72675527]
[1746529526614,9.55033436,143.79,143.75,87.72675527]
[1746529527106,24.33936022,143.8,143.76,9.55033436]
[1746529527329,6.95410292,143.8,143.77,9.55033436]
[1746529529809,21.89019814,143.8,143.76,14.93609522]
[1746529530815,21.89019814,143.8,143.76,101.01155049]
[1746529532110,14.93609522,143.79,143.76,86.07545527]
[1746529532614,21.89019814,143.8,143.76,101.01155049]
[1746529534212,14.93609522,143.79,143.76,86.07545527]
[1746529534792,6.95410292,143.8,143.76,86.07545527]
[1746529535011,14.93609522,143.79,143.76,86.07545527]
[1746529536127,6.95507024,143.78,143.76,86.07545527]
[1746529536519,21.89116546,143.78,143.76,86.07545527]
[1746529538310,14.93609522,143.78,143.76,86.07545527]
[1746529538712,1.5178,143.82,143.76,86.07545527]
[1746529538713,14.93609522,143.77,143.76,86.07545527]
[1746529540420,21.89164922,143.77,143.76,86.07545527]
[1746529544927,6.955554,143.77,143.76,86.07545527]
[1746529545128,21.89164922,143.77,143.76,86.07545527]
[1746529548015,14.93609522,143.77,143.76,86.07545527]
[1746529549519,21.89164922,143.77,143.76,86.07545527]
[1746529550913,6.955554,143.77,143.76,86.07545527]
[1746529551213,21.89164922,143.77,143.76,86.07545527]
[1746529551729,16.51872679,143.77,143.76,86.07545527]
[1746529553137,6.955554,143.77,143.76,86.07545527]
[1746529555937,6.95507024,143.78,143.76,86.07545527]
[1746529558137,17.38646637,143.79,143.76,86.07545527]
[1746529558645,26.94963916,143.79,143.76,86.07545527]
[1746529559136,9.56317279,143.78,143.76,86.07545527]
[1746529560437,6.955554,143.77,143.76,86.07545527]
[1746529560639,24.3377496,143.81,143.76,95.63862806]
[1746529561020,9.56317279,143.8,143.76,95.63862806]
[1746529561630,6.95361935,143.81,143.78,9.56317279]
[1746529561836,6.95361935,143.81,143.78,95.63862806]
[1746529562433,16.51679214,143.81,143.78,86.07545527]
[1746529564231,6.95361935,143.81,143.78,86.07545527]
[1746529564433,16.51679214,143.81,143.78,86.07545527]
[1746529564753,24.3368801,143.82,143.78,86.07545527]
[1746529565047,33.90005289,143.82,143.78,86.07545527]
[1746529565826,9.56317279,143.81,143.78,86.07545527]
[1746529566944,16.51727571,143.8,143.78,86.07545527]
[1746529568448,9.56317279,143.79,143.78,86.07545527]
[1746529568836,16.51775933,143.79,143.78,86.07545527]
[1746529572930,6.95458654,143.79,143.78,86.07545527]
[1746529574457,6.95410292,143.8,143.78,86.07545527]
[1746529575053,16.51727571,143.8,143.78,86.07545527]
[1746529575947,9.56317279,143.79,143.78,86.07545527]
[1746529576759,16.51775933,143.79,143.78,86.07545527]
[1746529577739,21.89707756,143.79,143.78,86.07545527]
[1746529581762,39.28354393,143.79,143.73,101.01794629]
[1746529582076,14.94249102,143.77,143.73,101.01794629]
[1746529583248,24.34105291,143.79,143.73,101.01794629]
[1746529583249,14.94249102,143.76,143.73,86.07545527]
[1746529583453,14.94249102,143.77,143.73,101.01794629]
[1746529584165,6.95603784,143.76,143.73,101.01794629]
[1746529587269,14.94249102,143.78,143.74,14.94249102]
[1746529587845,14.94249102,143.78,143.74,101.01794629]
[1746529589176,14.94249102,143.77,143.74,86.07545527]
[1746529589552,6.95603784,143.76,143.74,86.07545527]
[1746529592283,21.89852886,143.76,143.72,102.63134629]
[1746529592581,21.89852886,143.76,143.66,17.40187846]
[1746529592582,24.34613244,143.76,143.74,86.07545527]
[1746529592750,14.94249102,143.75,143.74,86.07545527]
[1746529594075,14.94249102,143.75,143.68,87.58985527]
[1746529594262,6.958458,143.71,143.68,87.58985527]
[1746529595360,6.958458,143.71,143.68,85.78985527]
[1746529596468,21.90094902,143.71,143.68,85.78985527]
[1746529600678,14.94249102,143.7,143.68,85.78985527]
[1746529601372,21.90094902,143.71,143.68,85.78985527]
[1746529601564,6.958458,143.71,143.68,85.78985527]
[1746529602505,17.39268249,143.74,143.68,85.78985527]
[1746529602506,6.95748973,143.73,143.68,107.6921631]
[1746529602702,14.94249102,143.76,143.72,14.94249102]
[1746529603008,14.94249102,143.79,143.74,14.94249102]
[1746529603179,40.94249102,143.79,143.74,14.94249102]
[1746529603506,14.94249102,143.79,143.74,14.94249102]
[1746529603884,14.94249102,143.78,143.74,14.94249102]
[1746529604596,14.94249102,143.77,143.73,14.94249102]
[1746529604800,14.94249102,143.76,143.72,102.27224629]
[1746529606211,6.95652173,143.75,143.72,102.27224629]
[1746529606816,6.95507024,143.78,143.72,102.27224629]
[1746529606996,6.95507024,143.78,143.73,14.94249102]
[1746529607175,6.95507024,143.78,143.72,102.27224629]
[1746529607373,14.94249102,143.77,143.73,14.94249102]
[1746529607677,14.94249102,143.77,143.72,102.27224629]
[1746529608076,14.94249102,143.76,143.72,102.27224629]
[1746529608898,6.95652173,143.75,143.72,102.27224629]
[1746529611801,6.95458654,143.79,143.73,33.59213988]
[1746529612007,14.94249102,143.78,143.74,14.94249102]
[1746529612498,21.89707756,143.79,143.75,14.94249102]
[1746529615615,14.94249102,143.78,143.74,14.94249102]
[1746529615806,6.955554,143.77,143.74,14.94249102]
[1746529617808,6.955554,143.77,143.74,100.73234629]
[1746529621481,14.94249102,143.77,143.74,85.78985527]
[1746529622404,14.94249102,143.76,143.74,85.78985527]
[1746529623812,6.95652173,143.75,143.74,85.78985527]
[1746529624202,21.89901275,143.75,143.74,85.78985527]
[1746529624521,39.29031709,143.75,143.72,85.78985527]
[1746529624691,14.94249102,143.73,143.72,85.78985527]
[1746529624888,6.95652173,143.75,143.7,14.94249102]
[1746529625194,14.94249102,143.74,143.7,14.94249102]
[1746529625911,21.89994298,143.74,143.71,14.94249102]
[1746529626210,14.94249102,143.73,143.7,14.94249102]
[1746529627410,21.90037957,143.73,143.7,14.94249102]
[1746529628115,21.90037957,143.73,143.69,133.11774629]
[1746529628727,14.94249102,143.72,143.69,85.78985527]
[1746529629100,14.94249102,143.71,143.69,85.78985527]
[1746529629287,6.95788855,143.73,143.68,1.5699]
[1746529629288,14.94249102,143.7,143.68,85.78985527]
[1746529629490,21.90191756,143.69,143.68,85.78985527]
[1746529630708,21.90191756,143.69,143.65,87.41285527]
[1746529631014,21.90191756,143.69,143.65,102.35534629]
[1746529631015,14.94249102,143.68,143.65,102.35534629]
[1746529631210,21.90191756,143.69,143.65,102.35534629]
[1746529634019,21.90191756,143.69,143.65,87.41285527]
[1746529634020,14.94249102,143.68,143.65,87.41285527]
[1746529634915,21.90191756,143.69,143.65,102.35534629]
[1746529639523,21.90241469,143.68,143.65,87.41285527]
[1746529640325,6.95992367,143.68,143.65,102.35534629]
[1746529641340,21.90230511,143.69,143.65,109.31670701]
[1746529642227,21.90230511,143.69,143.65,102.35534629]
[1746529642747,21.90230511,143.69,143.65,109.31670532]
[1746529643141,14.94249102,143.69,143.65,109.31670532]
[1746529643307,21.90105147,143.71,143.67,14.94249102]
[1746529643511,17.39134331,143.75,143.67,14.94249102]
[1746529643816,14.94249102,143.71,143.67,14.94249102]
[1746529644546,6.9581102,143.72,143.69,14.94249102]
[1746529644839,6.9581102,143.72,143.69,100.73234629]
[1746529646018,6.9570057,143.74,143.69,100.73234629]
[1746529646218,14.94249102,143.73,143.69,100.73234629]
[1746529646424,14.94249102,143.72,143.69,85.78985527]
[1746529647425,21.90090243,143.72,143.69,85.78985527]
[1746529647624,14.94249102,143.71,143.69,85.78985527]
[1746529648412,21.90090243,143.72,143.69,85.78985527]
[1746529649434,14.94249102,143.71,143.69,85.78985527]
[1746529650410,6.95841141,143.72,143.69,85.78985527]
[1746529650411,14.94249102,143.7,143.69,85.78985527]
[1746529650942,14.94249102,143.7,143.66,85.78985527]
[1746529651249,14.94249102,143.69,143.66,85.78985527]
[1746529652108,6.95991091,143.68,143.66,85.78985527]
[1746529652309,21.90201128,143.69,143.66,85.78985527]
[1746529653616,14.94249102,143.69,143.66,85.78985527]
[1746529653822,14.94249102,143.7,143.66,100.73234629]
[1746529654131,17.39235432,143.75,143.67,14.94249102]
[1746529654321,14.94249102,143.71,143.67,100.73234629]
[1746529654522,14.94249102,143.72,143.68,14.94249102]
[1746529654717,14.94249102,143.73,143.69,14.94249102]
[1746529655849,21.90010745,143.73,143.69,14.94249102]
[1746529656348,14.94249102,143.72,143.69,14.94249102]
[1746529658329,14.94249102,143.72,143.68,21.90210464]
[1746529659851,14.94249102,143.73,143.69,14.94249102]
[1746529660347,14.94249102,143.73,143.69,21.9015921]
[1746529664474,21.90003935,143.73,143.69,21.9015921]
[1746529665770,21.90003935,143.73,143.69,107.69144737]
[1746529666071,14.94249102,143.73,143.69,107.69144737]
[1746529669972,21.90006539,143.73,143.69,107.69144737]
[1746529670574,14.94249102,143.73,143.69,107.69144737]
[1746529670755,6.95722202,143.74,143.69,107.69144737]
[1746529670955,14.94249102,143.73,143.69,107.69144737]
[1746529671669,41.8303,143.77,143.7,33.59213988]
[1746529671876,32.24028488,143.79,143.71,14.94249102]
[1746529671877,14.94249102,143.76,143.71,14.94249102]
[1746529672053,21.89872177,143.76,143.71,21.90072795]
[1746529673178,14.94249102,143.75,143.71,21.90072795]
[1746529673379,14.94249102,143.75,143.7,113.034238]
[1746529673585,14.94249102,143.74,143.7,127.97672902]
[1746529674249,14.94249102,143.72,143.7,85.78985527]
[1746529674479,14.94249102,143.72,143.68,126.73234629]
[1746529675478,21.90065593,143.72,143.68,126.73234629]
[1746529676561,21.90065593,143.72,143.68,133.69220362]
[1746529676757,6.95816491,143.72,143.68,133.69220362]
[1746529676955,6.95816491,143.72,143.68,111.78985527]
[1746529676956,21.90065593,143.72,143.68,111.78985527]
[1746529677152,21.90065593,143.72,143.68,126.73234629]
[1746529679758,21.90065593,143.72,143.69,14.94249102]
[1746529679759,6.95816491,143.72,143.69,14.94249102]
[1746529680664,21.90022471,143.73,143.69,21.90189106]
[1746529680882,6.95773369,143.73,143.7,14.94249102]
[1746529683677,6.95773369,143.73,143.69,21.90190827]
[1746529683883,6.95773369,143.73,143.7,85.78985527]
[1746529684885,6.09233369,143.73,143.7,85.78985527]
[1746529685386,14.94249102,143.73,143.7,85.78985527]
[1746529686589,14.94249102,143.71,143.7,85.78985527]
[1746529686773,14.94249102,143.71,143.68,85.78985527]
[1746529686976,14.94249102,143.7,143.68,85.78985527]
[1746529687378,32.2386,143.76,143.69,14.94249102]
[1746529687379,21.90037639,143.73,143.69,14.94249102]
[1746529687691,6.95714458,143.74,143.71,14.94249102]
[1746529688894,21.89922476,143.75,143.7,14.94249102]
[1746529689092,21.89922476,143.75,143.7,100.73234629]
[1746529689690,14.94249102,143.74,143.7,100.73234629]
[1746529689987,14.94249102,143.74,143.7,85.78985527]
[1746529690187,14.94249102,143.73,143.7,85.78985527]
[1746529690868,21.90094902,143.71,143.68,85.78985527]
[1746529691661,14.94249102,143.69,143.65,85.78985527]
[1746529691884,14.94249102,143.68,143.65,85.78985527]
[1746529692780,6.96039535,143.67,143.65,85.78985527]
[1746529692988,21.90288637,143.67,143.65,85.78985527]
[1746529693884,14.94249102,143.66,143.63,99.92985527]
[1746529694886,6.96136442,143.65,143.63,99.92985527]
[1746529697586,21.90385544,143.65,143.63,99.92985527]
[1746529698791,21.90385544,143.65,143.63,14.14]
[1746529698971,21.90385544,143.65,143.61,126.73234629]
[1746529699587,21.90385544,143.65,143.61,100.73234629]
[1746529699969,21.90385544,143.65,143.61,85.78985527]
[1746529700171,21.90385544,143.65,143.61,100.73234629]
[1746529701087,14.94249102,143.64,143.61,85.78985527]
[1746529702796,21.90460093,143.64,143.61,85.78985527]
[1746529703882,6.96210991,143.64,143.61,85.78985527]
[1746529706293,6.3298,143.69,143.63,14.94249102]
[1746529706294,6.95991091,143.68,143.63,14.94249102]
[1746529706498,21.90240193,143.68,143.64,14.94249102]
[1746529707174,21.90240193,143.68,143.64,100.73234629]
[1746529708395,14.94249102,143.67,143.64,85.78985527]
[1746529709389,21.90324507,143.67,143.64,85.78985527]
[1746529709995,6.96075405,143.67,143.64,100.73234629]
[1746529710787,6.96075405,143.67,143.64,14.94249102]
[1746529716704,6.96075405,143.67,143.64,153.24249102]
[1746529718840,21.90256077,143.68,143.64,138.3]
[1746529718987,21.90256077,143.68,143.64,153.24249102]
[1746529720706,43.39628292,143.71,143.65,14.94249102]
[1746529720707,21.90213412,143.69,143.65,14.94249102]
[1746529720905,21.90115723,143.71,143.67,14.94249102]
[1746529721212,6.95854715,143.71,143.68,14.94249102]
[1746529721406,21.90103817,143.71,143.68,138.3]
[1746529723404,14.94249102,143.7,143.68,138.3]
[1746529723596,14.94249102,143.69,143.68,138.3]
[1746529725418,21.90191756,143.69,143.68,138.3]
[1746529725717,6.95942654,143.69,143.66,14.94249102]
[1746529730011,6.95942654,143.69,143.67,14.94249102]
[1746529731018,14.94249102,143.72,143.68,14.94249102]
[1746529731209,14.94249102,143.72,143.68,153.24249102]
[1746529731914,6.95857093,143.71,143.68,153.24249102]
[1746529736910,6.95857093,143.71,143.69,14.94249102]
[1746529737307,24.34802312,143.75,143.7,14.94249102]
[1746529737508,50.34802312,143.75,143.71,14.94249102]
[1746529737731,14.94249102,143.74,143.7,14.94249102]
[1746529738334,6.95748973,143.73,143.7,14.94249102]
[1746529738631,6.95748973,143.73,143.7,153.24249102]
[1746529739521,6.9570057,143.74,143.7,153.24249102]
[1746529739706,6.9570057,143.74,143.71,14.94249102]
[1746529739906,1.6052,143.79,143.73,14.94249102]
[1746529739907,6.95603784,143.76,143.73,14.94249102]
[1746529740113,6.95603784,143.76,143.74,14.94249102]
[1746529740537,6.95603784,143.76,143.73,14.94249102]
[1746529741236,6.95603784,143.76,143.73,153.24249102]
[1746529741437,17.38867774,143.78,143.75,14.94249102]